[Event "January 9 Early 2024"]
[Site "https://www.chess.com"]
[Date "2024.01.11"]
[Round "3"]
[White "Matlakov, Maxim"]
[Black "Korchmar, Vasiliy"]
[Result "1-0"]
[Board "274"]
[TimeControl "180+1"]
[WhiteFideId "4168003"]
[BlackFideId "24131750"]
[WhiteElo "2947"]
[BlackElo "2713"]
[WhiteTeam "RUS"]
[BlackTeam "RUS"]
[WhiteClock "0:00:04"]
[BlackClock "0:00:02"]

1. d4 {[%clk 0:03:00]}  d5 {[%clk 0:03:00]} 2. c4 {[%clk 0:02:58]}  e6 {[%clk 0:03:00]} 3. Nc3 {[%clk 0:02:56]}  Nf6 {[%clk 0:03:00]} 4. cxd5 {[%clk 0:02:56]}  exd5 {[%clk 0:03:00]} 5. Bf4 {[%clk 0:02:56]}  Bd6 {[%clk 0:02:40]} 6. Bxd6 {[%clk 0:02:55]}  Qxd6 {[%clk 0:02:41]} 7. e3 {[%clk 0:02:56]}  O-O {[%clk 0:02:39]} 8. Bd3 {[%clk 0:02:55]}  Bg4 {[%clk 0:02:17]} 9. Qc2 {[%clk 0:02:54]}  c6 {[%clk 0:02:14]} 10. Nge2 {[%clk 0:02:51]}  Re8 {[%clk 0:02:10]} 11. O-O {[%clk 0:02:49]}  Nbd7 {[%clk 0:02:02]} 12. Ng3 {[%clk 0:02:48]}  Nf8 {[%clk 0:01:56]} 13. Rae1 {[%clk 0:02:47]}  h5 {[%clk 0:01:54]} 14. f3 {[%clk 0:02:42]}  Bd7 {[%clk 0:01:54]} 15. a3 {[%clk 0:02:41]}  Re7 {[%clk 0:01:35]} 16. Qf2 {[%clk 0:02:40]}  Rae8 {[%clk 0:01:30]} 17. h3 {[%clk 0:02:34]}  c5 {[%clk 0:01:21]} 18. Nb5 {[%clk 0:02:08]}  Qb6 {[%clk 0:01:13]} 19. dxc5 {[%clk 0:02:07]}  Qxc5 {[%clk 0:01:14]} 20. Nd4 {[%clk 0:02:07]}  g6 {[%clk 0:01:04]} 21. Rc1 {[%clk 0:02:04]}  Qb6 {[%clk 0:01:05]} 22. Rfe1 {[%clk 0:02:04]}  Ne6 {[%clk 0:01:04]} 23. Nge2 {[%clk 0:01:28]}  Nc5 {[%clk 0:01:02]} 24. Nf4 {[%clk 0:01:28]}  Nb3 {[%clk 0:00:50]} 25. Nxb3 {[%clk 0:01:25]}  Qxb3 {[%clk 0:00:51]} 26. Qg3 {[%clk 0:00:44]}  Qb6 {[%clk 0:00:44]} 27. Kh1 {[%clk 0:00:39]}  Rxe3 {[%clk 0:00:36]} 28. Rxe3 {[%clk 0:00:39]}  Qxe3 {[%clk 0:00:37]} 29. Rd1 {[%clk 0:00:36]}  Ba4 {[%clk 0:00:18]} 30. b3 {[%clk 0:00:15]}  Bxb3 {[%clk 0:00:15]} 31. Rb1 {[%clk 0:00:16]}  h4 {[%clk 0:00:07]} 32. Qg5 {[%clk 0:00:15]}  Ba2 {[%clk 0:00:04]} 33. Ra1 {[%clk 0:00:11]}  Nh5 {[%clk 0:00:04]} 34. Bxg6 {[%clk 0:00:05]}  Qxf4 {[%clk 0:00:04]} 35. Qxh5 {[%clk 0:00:05]}  fxg6 {[%clk 0:00:02]} 36. Qxg6+ {[%clk 0:00:06]}  Kf8 {[%clk 0:00:03]} 37. Rd1 {[%clk 0:00:02]}  Bc4 {[%clk 0:00:03]} 38. Qh7 {[%clk 0:00:01]}  Re7 {[%clk 0:00:03]} 39. Qh8+ {[%clk 0:00:02]}  Kf7 {[%clk 0:00:04]} 40. Qh7+ {[%clk 0:00:02]}  Kf8 {[%clk 0:00:04]} 41. Qh8+ {[%clk 0:00:03]}  Kf7 {[%clk 0:00:04]} 42. Qh7+ {[%clk 0:00:03]}  Ke8 {[%clk 0:00:04]} 43. Qh8+ {[%clk 0:00:02]}  Kd7 {[%clk 0:00:04]} 44. Qa8 {[%clk 0:00:03]}  Kc7 {[%clk 0:00:04]} 45. Qxa7 {[%clk 0:00:04]}  Qe3 {[%clk 0:00:04]} 46. Qa5+ {[%clk 0:00:03]}  Qb6 {[%clk 0:00:04]} 47. Qc3 {[%clk 0:00:03]}  Re2 {[%clk 0:00:03]} 48. Rxd5 {[%clk 0:00:02]}  Qc6 {[%clk 0:00:02]} 49. Rd1 {[%clk 0:00:02]}  b6 {[%clk 0:00:01]} 50. Rc1 {[%clk 0:00:02]}  b5 {[%clk 0:00:01]} 51. a4 {[%clk 0:00:03]}  Re6 {[%clk 0:00:01]} 52. axb5 {[%clk 0:00:03]}  Qxb5 {[%clk 0:00:01]} 53. Qxc4+ {[%clk 0:00:03]}  Qxc4 {[%clk 0:00:01]} 54. Rxc4+ {[%clk 0:00:04]}  Kd7 {[%clk 0:00:02]} 55. Rxh4 {[%clk 0:00:04]} 1-0

[Event "January 9 Early 2024"]
[Site "https://www.chess.com"]
[Date "2024.01.11"]
[Round "3"]
[White "Hejazipour, Mitra"]
[Black "Sadhwani, Raunak"]
[Result "0-1"]
[Board "276"]
[TimeControl "180+1"]
[WhiteFideId "12505951"]
[BlackFideId "35093487"]
[WhiteElo "2464"]
[BlackElo "3079"]
[WhiteTeam "FRA"]
[BlackTeam "IND"]
[WhiteClock "0:00:04"]
[BlackClock "0:00:12"]

1. d4 {[%clk 0:03:00]}  d6 {[%clk 0:02:59]} 2. e4 {[%clk 0:02:59]}  g6 {[%clk 0:02:59]} 3. Nc3 {[%clk 0:02:56]}  a6 {[%clk 0:02:54]} 4. a4 {[%clk 0:02:55]}  Bg7 {[%clk 0:02:54]} 5. Nf3 {[%clk 0:02:54]}  Nf6 {[%clk 0:02:54]} 6. Bc4 {[%clk 0:02:54]}  O-O {[%clk 0:02:49]} 7. Qe2 {[%clk 0:02:43]}  Bg4 {[%clk 0:02:48]} 8. O-O {[%clk 0:02:41]}  Nc6 {[%clk 0:02:48]} 9. Be3 {[%clk 0:02:40]}  e5 {[%clk 0:02:43]} 10. d5 {[%clk 0:02:35]}  Nd4 {[%clk 0:02:40]} 11. Bxd4 {[%clk 0:02:24]}  exd4 {[%clk 0:02:41]} 12. Nb1 {[%clk 0:02:20]}  Re8 {[%clk 0:02:30]} 13. Nbd2 {[%clk 0:02:10]}  Nh5 {[%clk 0:01:59]} 14. h3 {[%clk 0:01:59]}  Nf4 {[%clk 0:01:58]} 15. Qd1 {[%clk 0:01:58]}  Bh5 {[%clk 0:01:54]} 16. Re1 {[%clk 0:01:52]}  g5 {[%clk 0:01:26]} 17. Bf1 {[%clk 0:01:44]}  g4 {[%clk 0:01:10]} 18. hxg4 {[%clk 0:01:39]}  Bxg4 {[%clk 0:01:11]} 19. g3 {[%clk 0:01:26]}  Nh3+ {[%clk 0:01:12]} 20. Bxh3 {[%clk 0:01:25]}  Bxh3 {[%clk 0:01:13]} 21. Nb3 {[%clk 0:01:22]}  Bg4 {[%clk 0:01:10]} 22. Qd3 {[%clk 0:01:20]}  h5 {[%clk 0:01:05]} 23. Nbxd4 {[%clk 0:01:14]}  Qf6 {[%clk 0:01:05]} 24. c3 {[%clk 0:01:08]}  Bd7 {[%clk 0:00:30]} 25. Nh4 {[%clk 0:01:07]}  Qg5 {[%clk 0:00:26]} 26. Ndf5 {[%clk 0:01:05]}  Bf8 {[%clk 0:00:14]} 27. Kg2 {[%clk 0:00:58]}  c6 {[%clk 0:00:15]} 28. c4 {[%clk 0:00:57]}  cxd5 {[%clk 0:00:15]} 29. cxd5 {[%clk 0:00:57]}  Rac8 {[%clk 0:00:14]} 30. Rh1 {[%clk 0:00:47]}  Qf6 {[%clk 0:00:14]} 31. Nf3 {[%clk 0:00:36]}  Bxf5 {[%clk 0:00:14]} 32. exf5 {[%clk 0:00:35]}  Qxb2 {[%clk 0:00:15]} 33. Rab1 {[%clk 0:00:33]}  Qc2 {[%clk 0:00:15]} 34. Qd4 {[%clk 0:00:27]}  Qxf5 {[%clk 0:00:13]} 35. Rxb7 {[%clk 0:00:23]}  Bg7 {[%clk 0:00:14]} 36. Qh4 {[%clk 0:00:19]}  Qxd5 {[%clk 0:00:14]} 37. Rb4 {[%clk 0:00:15]}  Re5 {[%clk 0:00:10]} 38. Rf4 {[%clk 0:00:14]}  Rce8 {[%clk 0:00:09]} 39. g4 {[%clk 0:00:12]}  Re4 {[%clk 0:00:09]} 40. gxh5 {[%clk 0:00:10]}  Rxf4 {[%clk 0:00:09]} 41. Qxf4 {[%clk 0:00:10]}  Re4 {[%clk 0:00:09]} 42. Qg3 {[%clk 0:00:08]}  Kh8 {[%clk 0:00:07]} 43. h6 {[%clk 0:00:07]}  Be5 {[%clk 0:00:08]} 44. Nxe5 {[%clk 0:00:04]}  Rg4+ {[%clk 0:00:07]} 45. Kh2 {[%clk 0:00:01]}  Rxg3 {[%clk 0:00:08]} 46. fxg3 {[%clk 0:00:02]}  Qxe5 {[%clk 0:00:08]} 47. Kh3 {[%clk 0:00:02]}  Qe6+ {[%clk 0:00:08]} 48. Kg2 {[%clk 0:00:02]}  Kh7 {[%clk 0:00:09]} 49. Rh4 {[%clk 0:00:02]}  d5 {[%clk 0:00:09]} 50. Kh2 {[%clk 0:00:03]}  Qd6 {[%clk 0:00:10]} 51. Kg2 {[%clk 0:00:03]}  d4 {[%clk 0:00:10]} 52. Kf2 {[%clk 0:00:04]}  Qf6+ {[%clk 0:00:09]} 53. Ke2 {[%clk 0:00:05]}  Qe5+ {[%clk 0:00:10]} 54. Kf2 {[%clk 0:00:04]}  Qe3+ {[%clk 0:00:11]} 55. Kg2 {[%clk 0:00:04]}  d3 {[%clk 0:00:12]} 0-1

[Event "January 9 Early 2024"]
[Site "https://www.chess.com"]
[Date "2024.01.11"]
[Round "3"]
[White "Nikulina, Alena"]
[Black "Elissalt Cardenas, Hector"]
[Result "1/2-1/2"]
[Board "277"]
[TimeControl "180+1"]
[WhiteFideId "4172051"]
[BlackFideId "3500632"]
[WhiteElo "2113"]
[BlackElo "2359"]
[WhiteTeam "RUS"]
[BlackTeam "ESP"]
[WhiteClock "0:00:10"]
[BlackClock "0:00:10"]

1. e4 {[%clk 0:02:58]}  d6 {[%clk 0:02:58]} 2. d4 {[%clk 0:02:57]}  Nf6 {[%clk 0:02:58]} 3. Nc3 {[%clk 0:02:57]}  e5 {[%clk 0:02:58]} 4. Bc4 {[%clk 0:02:55]}  Be7 {[%clk 0:02:54]} 5. Nf3 {[%clk 0:02:55]}  Nbd7 {[%clk 0:02:53]} 6. O-O {[%clk 0:02:55]}  O-O {[%clk 0:02:53]} 7. a4 {[%clk 0:02:55]}  c6 {[%clk 0:02:47]} 8. Bg5 {[%clk 0:02:52]}  h6 {[%clk 0:02:47]} 9. Bh4 {[%clk 0:02:50]}  Nh7 {[%clk 0:02:44]} 10. Bxe7 {[%clk 0:02:50]}  Qxe7 {[%clk 0:02:43]} 11. dxe5 {[%clk 0:02:42]}  dxe5 {[%clk 0:02:42]} 12. Qe2 {[%clk 0:02:43]}  a5 {[%clk 0:02:41]} 13. Qe3 {[%clk 0:02:29]}  Ng5 {[%clk 0:02:38]} 14. Nxg5 {[%clk 0:02:28]}  Qxg5 {[%clk 0:02:38]} 15. Qxg5 {[%clk 0:02:13]}  hxg5 {[%clk 0:02:38]} 16. g3 {[%clk 0:02:14]}  g4 {[%clk 0:02:28]} 17. f3 {[%clk 0:02:09]}  gxf3 {[%clk 0:02:25]} 18. Rxf3 {[%clk 0:02:09]}  Nc5 {[%clk 0:02:25]} 19. b3 {[%clk 0:02:02]}  Be6 {[%clk 0:02:23]} 20. Bxe6 {[%clk 0:01:58]}  Nxe6 {[%clk 0:02:23]} 21. Ne2 {[%clk 0:01:58]}  Nc5 {[%clk 0:02:23]} 22. Nc3 {[%clk 0:01:56]}  Rad8 {[%clk 0:02:21]} 23. Rf2 {[%clk 0:01:43]}  f6 {[%clk 0:02:19]} 24. Kg2 {[%clk 0:01:38]}  Rd4 {[%clk 0:02:16]} 25. Kf3 {[%clk 0:01:36]}  f5 {[%clk 0:02:05]} 26. exf5 {[%clk 0:01:14]}  Rxf5+ {[%clk 0:02:04]} 27. Ke3 {[%clk 0:01:13]}  Rxf2 {[%clk 0:02:04]} 28. Kxf2 {[%clk 0:01:12]}  Rd2+ {[%clk 0:02:04]} 29. Ne2 {[%clk 0:00:58]}  Rxc2 {[%clk 0:02:01]} 30. Rb1 {[%clk 0:00:54]}  Kf7 {[%clk 0:01:50]} 31. Ke3 {[%clk 0:00:53]}  Ke6 {[%clk 0:01:50]} 32. h4 {[%clk 0:00:54]}  Ra2 {[%clk 0:01:42]} 33. Nc3 {[%clk 0:00:43]}  Ra3 {[%clk 0:01:39]} 34. Ne4 {[%clk 0:00:30]}  Rxb3+ {[%clk 0:01:39]} 35. Rxb3 {[%clk 0:00:26]}  Nxb3 {[%clk 0:01:39]} 36. g4 {[%clk 0:00:24]}  b5 {[%clk 0:01:37]} 37. axb5 {[%clk 0:00:24]}  cxb5 {[%clk 0:01:37]} 38. Kd3 {[%clk 0:00:24]}  a4 {[%clk 0:01:23]} 39. Kc3 {[%clk 0:00:23]}  Kd5 {[%clk 0:01:22]} 40. Ng5 {[%clk 0:00:20]}  e4 {[%clk 0:00:57]} 41. h5 {[%clk 0:00:20]}  e3 {[%clk 0:00:53]} 42. Nf3 {[%clk 0:00:17]}  Nc5 {[%clk 0:00:52]} 43. g5 {[%clk 0:00:14]}  a3 {[%clk 0:00:38]} 44. h6 {[%clk 0:00:12]}  gxh6 {[%clk 0:00:37]} 45. gxh6 {[%clk 0:00:12]}  Ne4+ {[%clk 0:00:29]} 46. Kb3 {[%clk 0:00:13]}  Nf6 {[%clk 0:00:27]} 47. Kxa3 {[%clk 0:00:12]}  Kc4 {[%clk 0:00:27]} 48. Kb2 {[%clk 0:00:12]}  b4 {[%clk 0:00:24]} 49. Ne1 {[%clk 0:00:10]}  b3 {[%clk 0:00:23]} 50. Nf3 {[%clk 0:00:10]}  Kb4 {[%clk 0:00:20]} 51. Ne5 {[%clk 0:00:09]}  e2 {[%clk 0:00:19]} 52. Nd3+ {[%clk 0:00:09]}  Kc4 {[%clk 0:00:18]} 53. Ne1 {[%clk 0:00:09]}  Nh7 {[%clk 0:00:17]} 54. Nf3 {[%clk 0:00:09]}  Ng5 {[%clk 0:00:15]} 55. Ne1 {[%clk 0:00:10]}  Nh7 {[%clk 0:00:12]} 56. Nf3 {[%clk 0:00:10]}  Nf6 {[%clk 0:00:12]} 57. Ne1 {[%clk 0:00:10]}  Nh7 {[%clk 0:00:10]} 1/2-1/2

[Event "January 9 Early 2024"]
[Site "https://www.chess.com"]
[Date "2024.01.11"]
[Round "3"]
[White "Lima, Stefan Moisei VIeira"]
[Black "Martin Fuentes, Alberto"]
[Result "1/2-1/2"]
[Board "278"]
[TimeControl "180+1"]
[WhiteFideId "22782273"]
[BlackFideId "2292289"]
[WhiteElo "2445"]
[BlackElo "2632"]
[WhiteTeam "BRA"]
[BlackTeam "ESP"]
[WhiteClock "0:00:05"]
[BlackClock "0:00:20"]

1. d4 {[%clk 0:03:00]}  Nf6 {[%clk 0:02:59]} 2. c4 {[%clk 0:03:01]}  c5 {[%clk 0:02:58]} 3. e3 {[%clk 0:02:59]}  b6 {[%clk 0:02:55]} 4. Nc3 {[%clk 0:02:59]}  g6 {[%clk 0:02:54]} 5. Nf3 {[%clk 0:02:59]}  Bg7 {[%clk 0:02:55]} 6. Be2 {[%clk 0:02:59]}  O-O {[%clk 0:02:55]} 7. O-O {[%clk 0:03:00]}  Bb7 {[%clk 0:02:54]} 8. Rb1 {[%clk 0:02:56]}  cxd4 {[%clk 0:02:53]} 9. Nxd4 {[%clk 0:02:53]}  Nc6 {[%clk 0:02:51]} 10. Bf3 {[%clk 0:02:52]}  Rc8 {[%clk 0:02:51]} 11. b3 {[%clk 0:02:50]}  Ba8 {[%clk 0:02:47]} 12. Ba3 {[%clk 0:02:50]}  Re8 {[%clk 0:02:46]} 13. Ncb5 {[%clk 0:02:42]}  a6 {[%clk 0:02:44]} 14. Nxc6 {[%clk 0:02:42]}  Bxc6 {[%clk 0:02:42]} 15. Nd4 {[%clk 0:02:40]}  Bxf3 {[%clk 0:02:40]} 16. Nxf3 {[%clk 0:02:34]}  d6 {[%clk 0:02:40]} 17. Qd3 {[%clk 0:02:29]}  Qc7 {[%clk 0:02:38]} 18. Rbc1 {[%clk 0:02:21]}  Qb7 {[%clk 0:02:18]} 19. Rfd1 {[%clk 0:02:17]}  Ne4 {[%clk 0:02:15]} 20. Nd2 {[%clk 0:01:53]}  Nxd2 {[%clk 0:02:12]} 21. Qxd2 {[%clk 0:01:41]}  Rc7 {[%clk 0:02:12]} 22. Qd5 {[%clk 0:01:37]}  Rec8 {[%clk 0:02:11]} 23. Qxb7 {[%clk 0:01:36]}  Rxb7 {[%clk 0:02:12]} 24. Kf1 {[%clk 0:01:31]}  Kf8 {[%clk 0:02:08]} 25. Ke2 {[%clk 0:01:31]}  Ke8 {[%clk 0:02:08]} 26. Rd5 {[%clk 0:01:24]}  h5 {[%clk 0:02:08]} 27. e4 {[%clk 0:01:22]}  Rbc7 {[%clk 0:02:08]} 28. Rcd1 {[%clk 0:01:21]}  Rb7 {[%clk 0:02:02]} 29. Bb4 {[%clk 0:01:17]}  b5 {[%clk 0:01:58]} 30. c5 {[%clk 0:01:15]}  dxc5 {[%clk 0:01:51]} 31. Rxc5 {[%clk 0:01:09]}  Rbc7 {[%clk 0:01:45]} 32. Rxc7 {[%clk 0:00:57]}  Rxc7 {[%clk 0:01:45]} 33. Rd2 {[%clk 0:00:57]}  Bc3 {[%clk 0:01:38]} 34. Rc2 {[%clk 0:00:55]}  Be5 {[%clk 0:01:34]} 35. Rxc7 {[%clk 0:00:43]}  Bxc7 {[%clk 0:01:35]} 36. h3 {[%clk 0:00:44]}  Kd7 {[%clk 0:01:35]} 37. Ke3 {[%clk 0:00:41]}  e6 {[%clk 0:01:35]} 38. g4 {[%clk 0:00:37]}  Kc6 {[%clk 0:01:29]} 39. Kd4 {[%clk 0:00:33]}  Bb6+ {[%clk 0:01:28]} 40. Ke5 {[%clk 0:00:32]}  hxg4 {[%clk 0:01:20]} 41. hxg4 {[%clk 0:00:31]}  Kd7 {[%clk 0:00:53]} 42. f3 {[%clk 0:00:24]}  Bd8 {[%clk 0:00:53]} 43. Bd2 {[%clk 0:00:21]}  Bh4 {[%clk 0:00:51]} 44. Bf4 {[%clk 0:00:18]}  Bd8 {[%clk 0:00:48]} 45. Kd4 {[%clk 0:00:17]}  Kc6 {[%clk 0:00:47]} 46. Kc3 {[%clk 0:00:13]}  Ba5+ {[%clk 0:00:45]} 47. Kd4 {[%clk 0:00:13]}  Bd8 {[%clk 0:00:46]} 48. Kc3 {[%clk 0:00:13]}  Bf6+ {[%clk 0:00:46]} 49. Kd3 {[%clk 0:00:12]}  Kc5 {[%clk 0:00:43]} 50. Bd2 {[%clk 0:00:12]}  Bd8 {[%clk 0:00:40]} 51. Be1 {[%clk 0:00:12]}  Bc7 {[%clk 0:00:39]} 52. Bd2 {[%clk 0:00:12]}  a5 {[%clk 0:00:38]} 53. a4 {[%clk 0:00:10]}  bxa4 {[%clk 0:00:36]} 54. bxa4 {[%clk 0:00:11]}  Bd8 {[%clk 0:00:36]} 55. Bc3 {[%clk 0:00:09]}  Bc7 {[%clk 0:00:35]} 56. Bd2 {[%clk 0:00:09]}  Bd8 {[%clk 0:00:31]} 57. Bc3 {[%clk 0:00:08]}  f5 {[%clk 0:00:30]} 58. gxf5 {[%clk 0:00:08]}  exf5 {[%clk 0:00:31]} 59. exf5 {[%clk 0:00:09]}  gxf5 {[%clk 0:00:30]} 60. Bd2 {[%clk 0:00:06]}  Bc7 {[%clk 0:00:30]} 61. Bc3 {[%clk 0:00:05]}  Kd5 {[%clk 0:00:30]} 62. Bd2 {[%clk 0:00:05]}  Bd8 {[%clk 0:00:30]} 63. Bc3 {[%clk 0:00:05]}  Bb6 {[%clk 0:00:30]} 64. Bd2 {[%clk 0:00:05]}  Bd8 {[%clk 0:00:31]} 65. Bc3 {[%clk 0:00:06]}  Kc5 {[%clk 0:00:20]} 66. Be1 {[%clk 0:00:05]}  Kd5 {[%clk 0:00:20]} 67. Bc3 {[%clk 0:00:05]} 1/2-1/2

[Event "January 9 Early 2024"]
[Site "https://www.chess.com"]
[Date "2024.01.11"]
[Round "3"]
[White "Tharushi, T H D Niklesha"]
[Black "Hungaski, Robert"]
[Result "0-1"]
[Board "279"]
[TimeControl "180+1"]
[WhiteFideId "9918264"]
[BlackFideId "2021030"]
[WhiteElo "2249"]
[BlackElo "2429"]
[WhiteTeam "SRI"]
[BlackTeam "USA"]
[WhiteClock "0:00:06"]
[BlackClock "0:00:14"]

1. e4 {[%clk 0:03:00]}  e5 {[%clk 0:02:57]} 2. Nf3 {[%clk 0:02:59]}  Nc6 {[%clk 0:02:57]} 3. Bc4 {[%clk 0:02:57]}  Bc5 {[%clk 0:02:56]} 4. c3 {[%clk 0:02:56]}  d6 {[%clk 0:02:53]} 5. d4 {[%clk 0:02:55]}  exd4 {[%clk 0:02:54]} 6. cxd4 {[%clk 0:02:56]}  Bb6 {[%clk 0:02:54]} 7. Nc3 {[%clk 0:02:51]}  Nf6 {[%clk 0:02:53]} 8. Be3 {[%clk 0:02:44]}  O-O {[%clk 0:02:39]} 9. O-O {[%clk 0:02:28]}  Bg4 {[%clk 0:02:37]} 10. Be2 {[%clk 0:02:25]}  Re8 {[%clk 0:02:25]} 11. h3 {[%clk 0:02:24]}  Bh5 {[%clk 0:02:18]} 12. Qd3 {[%clk 0:02:00]}  Bg6 {[%clk 0:02:11]} 13. Nd2 {[%clk 0:01:58]}  d5 {[%clk 0:02:09]} 14. Bf3 {[%clk 0:01:37]}  dxe4 {[%clk 0:01:55]} 15. Ndxe4 {[%clk 0:01:29]}  Nxe4 {[%clk 0:01:39]} 16. Bxe4 {[%clk 0:01:26]}  Nxd4 {[%clk 0:01:07]} 17. Bxd4 {[%clk 0:01:08]}  Qxd4 {[%clk 0:01:00]} 18. Bxg6 {[%clk 0:01:06]}  hxg6 {[%clk 0:00:59]} 19. Qf3 {[%clk 0:00:57]}  c6 {[%clk 0:00:55]} 20. Rad1 {[%clk 0:00:57]}  Qf6 {[%clk 0:00:49]} 21. Qxf6 {[%clk 0:00:48]}  gxf6 {[%clk 0:00:50]} 22. Rd7 {[%clk 0:00:48]}  Rab8 {[%clk 0:00:50]} 23. Rfd1 {[%clk 0:00:47]}  Kf8 {[%clk 0:00:50]} 24. R1d6 {[%clk 0:00:31]}  Re1+ {[%clk 0:00:46]} 25. Kh2 {[%clk 0:00:30]}  Kg7 {[%clk 0:00:23]} 26. f3 {[%clk 0:00:27]}  f5 {[%clk 0:00:20]} 27. Rd2 {[%clk 0:00:21]}  Bc5 {[%clk 0:00:18]} 28. g3 {[%clk 0:00:20]}  b5 {[%clk 0:00:17]} 29. Ne2 {[%clk 0:00:19]}  Re8 {[%clk 0:00:15]} 30. Nf4 {[%clk 0:00:15]}  Be3 {[%clk 0:00:15]} 31. Rc2 {[%clk 0:00:06]}  Bxf4 {[%clk 0:00:15]} 32. gxf4 {[%clk 0:00:07]}  R8e2+ {[%clk 0:00:15]} 33. Rxe2 {[%clk 0:00:08]}  Rxe2+ {[%clk 0:00:16]} 34. Kg3 {[%clk 0:00:09]}  Rxb2 {[%clk 0:00:17]} 35. Rxa7 {[%clk 0:00:08]}  c5 {[%clk 0:00:17]} 36. Rc7 {[%clk 0:00:07]}  Rc2 {[%clk 0:00:16]} 37. Rb7 {[%clk 0:00:07]}  b4 {[%clk 0:00:15]} 38. Rb5 {[%clk 0:00:07]}  Kf6 {[%clk 0:00:14]} 39. h4 {[%clk 0:00:07]}  Ke6 {[%clk 0:00:14]} 40. h5 {[%clk 0:00:06]}  gxh5 {[%clk 0:00:14]} 41. Kh4 {[%clk 0:00:07]}  Kd5 {[%clk 0:00:13]} 42. Kxh5 {[%clk 0:00:07]}  Rxa2 {[%clk 0:00:13]} 43. Kg5 {[%clk 0:00:08]}  Ra7 {[%clk 0:00:13]} 44. Kxf5 {[%clk 0:00:08]}  Kc4 {[%clk 0:00:14]} 45. Rb8 {[%clk 0:00:08]}  b3 {[%clk 0:00:14]} 46. Kf6 {[%clk 0:00:08]}  Kc3 {[%clk 0:00:14]} 47. Rb5 {[%clk 0:00:07]}  c4 {[%clk 0:00:14]} 48. Ke5 {[%clk 0:00:08]}  b2 {[%clk 0:00:13]} 49. Kd5 {[%clk 0:00:08]}  Kc2 {[%clk 0:00:13]} 50. Kxc4 {[%clk 0:00:06]}  b1=Q {[%clk 0:00:13]} 51. Rxb1 {[%clk 0:00:07]}  Kxb1 {[%clk 0:00:14]} 52. Kd5 {[%clk 0:00:07]}  Re7 {[%clk 0:00:14]} 53. f5 {[%clk 0:00:07]}  Kc2 {[%clk 0:00:13]} 54. Kd6 {[%clk 0:00:06]}  Re3 {[%clk 0:00:12]} 55. f4 {[%clk 0:00:06]}  Kd2 {[%clk 0:00:13]} 56. f6 {[%clk 0:00:06]}  Ke2 {[%clk 0:00:13]} 57. f5 {[%clk 0:00:06]}  Kf3 {[%clk 0:00:13]} 58. Kd7 {[%clk 0:00:06]}  Kf4 {[%clk 0:00:14]} 59. Kd6 {[%clk 0:00:06]}  Kxf5 {[%clk 0:00:14]} 0-1

[Event "January 9 Early 2024"]
[Site "https://www.chess.com"]
[Date "2024.01.11"]
[Round "3"]
[White "Haug, Havard"]
[Black "Benedetti, Julio"]
[Result "1-0"]
[Board "283"]
[TimeControl "180+1"]
[WhiteFideId "1547887"]
[BlackFideId "172545"]
[WhiteElo "2772"]
[BlackElo "2503"]
[WhiteTeam "NOR"]
[BlackTeam "ARG"]
[WhiteClock "0:00:29"]
[BlackClock "0:00:04"]

1. e4 {[%clk 0:02:56]}  c5 {[%clk 0:02:59]} 2. c3 {[%clk 0:02:56]}  d6 {[%clk 0:02:58]} 3. d4 {[%clk 0:02:56]}  Nf6 {[%clk 0:02:58]} 4. Bd3 {[%clk 0:02:54]}  e6 {[%clk 0:02:55]} 5. Nf3 {[%clk 0:02:54]}  Be7 {[%clk 0:02:55]} 6. O-O {[%clk 0:02:54]}  Nc6 {[%clk 0:02:55]} 7. Re1 {[%clk 0:02:54]}  b6 {[%clk 0:02:50]} 8. Bb5 {[%clk 0:02:45]}  Bd7 {[%clk 0:02:48]} 9. Qa4 {[%clk 0:02:32]}  Nb8 {[%clk 0:02:39]} 10. e5 {[%clk 0:02:31]}  Nd5 {[%clk 0:02:38]} 11. c4 {[%clk 0:02:29]}  Nc7 {[%clk 0:02:35]} 12. exd6 {[%clk 0:02:27]}  Bxd6 {[%clk 0:02:35]} 13. dxc5 {[%clk 0:02:22]}  Nxb5 {[%clk 0:02:28]} 14. cxd6 {[%clk 0:02:19]}  Nxd6 {[%clk 0:02:26]} 15. Qb4 {[%clk 0:02:18]}  Nf5 {[%clk 0:02:08]} 16. Bg5 {[%clk 0:02:09]}  Qc7 {[%clk 0:02:02]} 17. g4 {[%clk 0:02:05]}  Nc6 {[%clk 0:00:50]} 18. Qa3 {[%clk 0:02:00]}  h6 {[%clk 0:00:50]} 19. Bd2 {[%clk 0:01:46]}  Nfe7 {[%clk 0:00:44]} 20. Nc3 {[%clk 0:01:43]}  O-O {[%clk 0:00:35]} 21. Nb5 {[%clk 0:01:42]}  Qb8 {[%clk 0:00:34]} 22. Rad1 {[%clk 0:01:37]}  Rd8 {[%clk 0:00:31]} 23. Bc3 {[%clk 0:01:32]}  Qf4 {[%clk 0:00:28]} 24. Re3 {[%clk 0:01:15]}  Qxg4+ {[%clk 0:00:27]} 25. Kh1 {[%clk 0:01:15]}  Qxc4 {[%clk 0:00:28]} 26. Nd6 {[%clk 0:01:12]}  Qc5 {[%clk 0:00:25]} 27. Qxc5 {[%clk 0:01:10]}  bxc5 {[%clk 0:00:26]} 28. Nb7 {[%clk 0:01:11]}  Nd5 {[%clk 0:00:10]} 29. Nxd8 {[%clk 0:01:00]}  Rxd8 {[%clk 0:00:08]} 30. Red3 {[%clk 0:00:59]}  Be8 {[%clk 0:00:06]} 31. Kg1 {[%clk 0:00:58]}  Rb8 {[%clk 0:00:05]} 32. R3d2 {[%clk 0:00:48]}  f6 {[%clk 0:00:05]} 33. Ne1 {[%clk 0:00:43]}  Bh5 {[%clk 0:00:04]} 34. f3 {[%clk 0:00:40]}  c4 {[%clk 0:00:04]} 35. Kf2 {[%clk 0:00:39]}  Kf7 {[%clk 0:00:03]} 36. Nc2 {[%clk 0:00:37]}  Rb7 {[%clk 0:00:01]} 37. Rxd5 {[%clk 0:00:34]}  exd5 {[%clk 0:00:02]} 38. Rxd5 {[%clk 0:00:35]}  Bg6 {[%clk 0:00:02]} 39. Ne3 {[%clk 0:00:36]}  Ne7 {[%clk 0:00:02]} 40. Rc5 {[%clk 0:00:36]}  Bd3 {[%clk 0:00:02]} 41. h3 {[%clk 0:00:31]}  g6 {[%clk 0:00:02]} 42. Ng4 {[%clk 0:00:30]}  f5 {[%clk 0:00:02]} 43. Nxh6+ {[%clk 0:00:29]}  Ke6 {[%clk 0:00:02]} 44. Re5+ {[%clk 0:00:29]}  Kd6 {[%clk 0:00:03]} 45. Nf7+ {[%clk 0:00:30]}  Kd7 {[%clk 0:00:03]} 46. Re1 {[%clk 0:00:29]}  Nc6 {[%clk 0:00:02]} 47. f4 {[%clk 0:00:27]}  Rb8 {[%clk 0:00:02]} 48. Ng5 {[%clk 0:00:23]}  Re8 {[%clk 0:00:02]} 49. Rxe8 {[%clk 0:00:21]}  Kxe8 {[%clk 0:00:03]} 50. Ke3 {[%clk 0:00:22]}  Kd7 {[%clk 0:00:03]} 51. Nf3 {[%clk 0:00:22]}  Kd6 {[%clk 0:00:03]} 52. Nh4 {[%clk 0:00:23]}  Ne7 {[%clk 0:00:03]} 53. Bb4+ {[%clk 0:00:23]}  Ke6 {[%clk 0:00:03]} 54. Bxe7 {[%clk 0:00:24]}  Kxe7 {[%clk 0:00:04]} 55. Nxg6+ {[%clk 0:00:25]}  Kf6 {[%clk 0:00:05]} 56. Ne5 {[%clk 0:00:26]}  Bf1 {[%clk 0:00:04]} 57. h4 {[%clk 0:00:26]}  Kg7 {[%clk 0:00:05]} 58. Kd4 {[%clk 0:00:25]}  Kh6 {[%clk 0:00:05]} 59. Nxc4 {[%clk 0:00:26]}  Kh5 {[%clk 0:00:06]} 60. Ne3 {[%clk 0:00:26]}  Bh3 {[%clk 0:00:05]} 61. Ke5 {[%clk 0:00:27]}  Kxh4 {[%clk 0:00:05]} 62. Nxf5+ {[%clk 0:00:27]}  Kg4 {[%clk 0:00:06]} 63. Nd4 {[%clk 0:00:27]}  Bf1 {[%clk 0:00:04]} 64. f5 {[%clk 0:00:28]}  Bc4 {[%clk 0:00:05]} 65. f6 {[%clk 0:00:29]}  Kg5 {[%clk 0:00:04]} 66. a3 {[%clk 0:00:27]}  Bf7 {[%clk 0:00:04]} 67. b4 {[%clk 0:00:28]}  Kg6 {[%clk 0:00:05]} 68. Nf5 {[%clk 0:00:29]}  Be8 {[%clk 0:00:04]} 69. Nd6 {[%clk 0:00:29]} 1-0